bitfinex-derivatives/quotes_SOLF0:USTF0_20250606
["timestamp","ask_amount","ask_price","bid_price","bid_amount"]
[1749187818974,6.7975,147.05,147.01,6.7987]
[1749187819378,0.05048553,147.04,147.02,0.04746216]
[1749187820481,0.05048553,147.04,147.02,4.89978763]
[1749187821480,0.05048553,147.04,147.03,6.798]
[1749187822381,0.05048553,147.04,147.02,11.69798763]
[1749187823581,0.05048553,147.04,147.02,0.04746216]
[1749187825279,6.84808553,147.04,147.02,0.04746216]
[1749187826982,6.798,147.03,147.02,0.04746216]
[1749187830981,6.7993,147.01,146.97,6.8006]
[1749187831580,6.7993,147.01,146.98,6.8003]
[1749187831983,6.84794906,147.01,146.98,6.84500975]
[1749187832391,6.84794906,147.01,146.98,0.04470975]
[1749187833289,6.7995,147.0,146.98,0.04470975]
[1749187833893,6.84784906,147.01,146.98,0.04470975]
[1749187835502,6.7995,147.0,146.98,0.04470975]
[1749187841103,4.85232547,146.99,146.87,391.58]
[1749187841303,4.85232547,146.97,146.89,4.85232547]
[1749187841501,10.49703873,146.97,146.89,4.85232547]
[1749187841809,6.8021,146.95,146.9,6.8039]
[1749187842010,10.49703873,146.97,146.9,6.8039]
[1749187842212,0.04500798,146.95,146.9,6.8039]
[1749187842411,6.84690798,146.95,146.9,6.8039]
[1749187843913,6.84690798,146.95,146.91,6.8035]
[1749187846912,41.9623,146.94,146.91,6.8035]
[1749187848205,41.9623,146.94,146.89,6.8041]
[1749187848412,6.8027,146.93,146.88,7.11562547]
[1749187848612,0.04530795,146.92,146.88,7.11562547]
[1749187849016,0.04530795,146.92,146.89,6.8044]
[1749187850404,6.84850795,146.92,146.89,6.8044]
[1749187854516,6.84850795,146.92,146.88,6.8048]
[1749187854710,6.84850795,146.92,146.87,7.10932547]
[1749187854909,6.84850795,146.92,146.88,6.8048]
[1749187856514,6.8038,146.91,146.87,6.8053]
[1749187856714,0.04530795,146.92,146.87,6.8053]
[1749187857213,6.8043,146.9,146.86,8.26096]
[1749187857413,41.9643,146.9,146.86,8.26096]
[1749187857820,0.04530795,146.92,146.89,4.85232547]
[1749187858329,0.04530795,146.92,146.9,6.8038]
[1749187858619,0.04530795,146.92,146.87,7.12572547]
[1749187859118,6.84850795,146.92,146.89,6.8044]
[1749187859719,0.04530795,146.92,146.89,6.8044]
[1749187860315,6.84850795,146.92,146.88,6.8048]
[1749187860610,6.84850795,146.92,146.87,7.12572547]
[1749187861319,6.8036,146.91,146.87,7.12572547]
[1749187861622,6.8036,146.91,146.87,2.2734]
[1749187862621,6.8036,146.91,146.86,13.11328547]
[1749187863723,6.8036,146.91,146.88,6.8048]
[1749187864323,6.8041,146.9,146.87,6.8053]
[1749187865414,6.8041,146.9,146.86,15.06666]
[1749187866521,6.8041,146.9,146.87,6.8054]
[1749187867226,6.8046,146.89,146.86,8.26096]
[1749187867528,0.04653806,146.89,146.86,8.26096]
[1749187868119,0.04653806,146.89,146.86,15.06646]
[1749187868615,0.04653806,146.89,146.86,8.26096]
[1749187868818,0.04653806,146.89,146.87,6.805]
[1749187869018,0.04653806,146.89,146.86,8.26096]
[1749187869421,0.04653806,146.89,146.87,4.85232547]
[1749187869625,0.04653806,146.89,146.88,6.805]
[1749187871927,0.04653806,146.89,146.86,8.26096]
[1749187872528,0.04653806,146.89,146.87,6.8054]
[1749187873026,0.04653806,146.89,146.86,8.26096]
[1749187873027,6.85113806,146.89,146.86,15.06686]
[1749187873419,0.04653806,146.89,146.86,15.06686]
[1749187874232,0.04653806,146.89,146.86,8.26096]
[1749187874421,39.99886353,146.89,146.86,8.26096]
[1749187874825,6.8054,146.87,146.86,8.26096]
[1749187875320,11.65772547,146.87,146.86,8.26096]
[1749187876433,6.8063,146.86,146.82,6.8076]
[1749187876728,0.04323704,146.85,146.82,6.8076]
[1749187876923,11.70226251,146.85,146.81,6.8081]
[1749187877123,4.89556251,146.85,146.81,6.8081]
[1749187877430,4.85232547,146.83,146.77,11.49792547]
[1749187877631,0.04889407,146.81,146.79,6.8088]
[1749187880841,0.04889407,146.81,146.8,6.8087]
[1749187882037,35.1,146.85,146.83,6.8071]
[1749187882234,35.1,146.85,146.8,4.85232547]
[1749187882436,46.75872547,146.85,146.81,6.8081]
[1749187882736,46.75872547,146.85,146.78,4.85232547]
[1749187882737,39.95232547,146.85,146.78,4.85232547]
[1749187883034,0.05072081,146.83,146.81,6.8078]
[1749187885131,35.12,146.89,146.81,4.85232547]
[1749187885334,35.12,146.89,146.84,4.85232547]
[1749187885934,6.805,146.88,146.84,11.65912547]
[1749187886130,0.05063794,146.87,146.85,0.05028726]
[1749187886836,6.85613794,146.87,146.85,0.05028726]
[1749187887338,6.85623794,146.87,146.85,0.05028726]
[1749187887538,0.05063794,146.87,146.85,0.05028726]
[1749187888035,0.05063794,146.87,146.85,4.90261273]
[1749187888237,0.05063794,146.87,146.86,6.8059]
[1749187888532,0.05063794,146.87,146.85,4.90261273]
[1749187888832,0.05063794,146.87,146.86,6.8059]
[1749187889737,0.05063794,146.87,146.85,11.70881273]
[1749187889929,0.05063794,146.87,146.85,4.90261273]
[1749187890333,0.05063794,146.87,146.86,6.8059]
[1749187891131,0.05063794,146.87,146.86,11.65822547]
[1749187894037,35.1,146.91,146.88,6.8048]
[1749187894239,35.1,146.91,146.89,4.85232547]
[1749187894838,35.1,146.91,146.89,11.65642547]
[1749187895038,35.14919973,146.91,146.89,11.70127386]
[1749187896435,35.14919973,146.91,146.89,0.04484839]
[1749187896636,6.26267329,146.97,146.89,0.04484839]
[1749187896637,2.2831,146.97,146.9,4.85232547]
[1749187896838,35.1,146.96,146.93,4.85232547]
[1749187897035,35.1,146.96,146.93,11.65492547]
[1749187897337,35.1,146.96,146.93,4.85232547]
[1749187897536,35.04,146.99,146.95,4.85232547]
[1749187897738,12.40402558,146.98,146.96,0.04624972]
[1749187899838,6.845463,146.98,146.96,0.04624972]
[1749187900536,0.044863,146.98,146.96,0.04624972]
[1749187905334,0.044863,146.98,146.97,4.85232547]
[1749187906740,0.044863,146.98,146.97,11.65312547]
[1749187908638,0.044863,146.98,146.97,4.85232547]
[1749187909841,0.044863,146.98,146.97,11.65312547]
[1749187910343,0.044863,146.98,146.97,4.85232547]
[1749187911544,0.044863,146.98,146.97,11.65312547]
[1749187911939,35.04,147.01,147.0,6.7994]
[1749187912140,6.7981,147.03,147.0,6.7994]
[1749187912337,6.7981,147.03,147.0,11.65172547]
[1749187912537,37.1419,147.04,147.0,11.65172547]
[1749187912538,43.9396,147.04,147.0,11.65172547]
[1749187912738,37.1419,147.04,147.0,11.65172547]
[1749187912938,0.0490362,147.03,147.01,0.05077795]
[1749187913236,6.7985,147.02,147.01,0.05077795]
[1749187919948,6.8003,146.99,146.95,39.87232547]
[1749187920148,35.02,147.0,146.95,4.85232547]
[1749187920447,6.8003,146.99,146.95,11.65372547]
[1749187920648,35.02,147.0,146.95,4.85232547]
[1749187920847,0.04297957,146.99,146.96,0.04572217]
[1749187921447,6.84327957,146.99,146.96,0.04572217]
[1749187921743,0.04297957,146.99,146.96,0.04572217]
[1749187923150,6.8003,146.98,146.96,0.04572217]
[1749187925345,6.84307957,146.99,146.96,0.04572217]
[1749187926649,6.8008,146.97,146.96,0.04572217]
[1749187926846,0.04297957,146.99,146.96,0.04572217]
[1749187928044,6.84317957,146.99,146.96,0.04572217]
[1749187928646,0.04297957,146.99,146.96,0.04572217]
[1749187929752,0.04297957,146.99,146.97,6.8007]
[1749187930344,0.04297957,146.99,146.98,6.8003]
[1749187931247,0.04297957,146.99,146.97,11.65302547]
[1749187931639,0.04297957,146.99,146.97,4.85232547]
[1749187932344,0.04297957,146.99,146.98,6.8003]
[1749187932847,0.04297957,146.99,146.97,4.85232547]
[1749187933152,0.04297957,146.99,146.96,4.89804764]
[1749187933652,0.04297957,146.99,146.96,11.69904764]
[1749187934149,0.04297957,146.99,146.96,0.04572217]
[1749187936453,5.61492895,146.99,146.96,0.04572217]
[1749187936855,0.04297957,146.99,146.96,0.04572217]
[1749187937154,6.8006,146.98,146.96,0.04572217]
[1749187946158,5.58402335,146.97,146.96,0.04572217]
[1749187946360,5.58431682,146.97,146.96,0.04572217]
[1749187948854,6.8006,146.98,146.96,0.04572217]
[1749187949062,5.58461646,146.97,146.96,0.04572217]
[1749187951461,12.38541646,146.97,146.96,0.04572217]
[1749187951662,5.58461646,146.97,146.96,0.04572217]
[1749187951964,0.04297957,146.99,146.96,0.04572217]
[1749187952163,5.58229475,146.98,146.96,0.04572217]
[1749187952364,6.84327957,146.99,146.96,0.04572217]
[1749187952661,5.5813895,146.98,146.96,0.04572217]
[1749187952853,6.84327957,146.99,146.96,0.04572217]
[1749187953054,5.58029592,146.98,146.96,0.04572217]
[1749187953258,6.84327957,146.99,146.96,0.04572217]
[1749187953459,5.57723192,146.98,146.96,0.04572217]
[1749187953658,6.84327957,146.99,146.96,0.04572217]
[1749187953957,5.57659755,146.98,146.96,0.04572217]
[1749187954154,6.8004,146.98,146.96,0.04572217]
[1749187954351,0.04297957,146.99,146.96,6.84702217]
[1749187954556,5.57622694,146.98,146.96,6.84702217]
[1749187954853,0.04297957,146.99,146.96,0.04572217]
[1749187955057,0.04297957,146.99,146.98,6.8003]
[1749187960471,0.04297957,146.99,146.96,0.04572217]
[1749187960667,0.04297957,146.99,146.96,4.89804764]
[1749187961070,0.04297957,146.99,146.97,6.8008]
[1749187961972,0.04297957,146.99,146.98,6.8003]
[1749187962170,0.04297957,146.99,146.98,11.65262547]
[1749187971182,0.04297957,146.99,146.98,9.90823228]
[1749187978785,0.04297957,146.99,146.98,9.90823228]
[1749187980987,0.04297957,146.99,146.98,6.8003]
[1749187981197,0.04297957,146.99,146.98,9.90823228]
[1749187986792,0.04297957,146.99,146.98,6.8003]
[1749187987095,0.04297957,146.99,146.98,9.90823228]
[1749187987397,0.04297957,146.99,146.98,6.8003]
[1749187987595,0.04297957,146.99,146.98,9.90823228]
[1749187995000,0.04297957,146.99,146.98,6.8003]
[1749187995202,0.04297957,146.99,146.98,9.90823228]
[1749188004099,2.1072,147.05,147.02,6.7985]
[1749188004297,2.1072,147.05,147.04,3.10793228]
[1749188004499,7.74101907,147.05,147.04,3.10793228]
[1749188004811,7.74101907,147.05,147.02,6.7985]
[1749188005004,5.63381907,147.04,147.03,3.10793228]
[1749188005410,5.63381907,147.04,147.03,9.90593228]
[1749188006614,5.63381907,147.04,147.03,3.10793228]
[1749188007617,5.63381907,147.04,147.03,9.90593228]
[1749188007805,2.15648975,147.05,147.03,9.90593228]
[1749188008008,0.04928975,147.05,147.04,9.90553228]
[1749188008409,34.88,147.1,147.04,3.10793228]
[1749188008716,34.88,147.1,147.09,3.10793228]
[1749188008917,34.88,147.1,147.01,6.4135]
[1749188009110,34.88,147.1,147.09,3.10793228]
[1749188009409,0.0516126,147.11,147.09,3.10793228]
[1749188009615,0.0516126,147.11,147.1,3.10793228]
[1749188010114,0.0516126,147.11,147.1,9.90273228]
[1749188011210,0.0516126,147.11,147.1,11.64366385]
[1749188021509,34.86,147.16,147.1,4.84886385]
[1749188021820,34.86,147.16,147.14,4.84886385]
[1749188022018,34.86,147.16,147.14,11.64176385]
[1749188022619,34.90794791,147.16,147.14,6.84203308]
[1749188022812,34.90794791,147.16,147.14,4.89799693]
[1749188023520,0.04794791,147.16,147.14,4.89799693]
[1749188024721,0.04794791,147.16,147.15,6.7925]
[1749188025121,0.04794791,147.16,147.14,4.89799693]
[1749188025421,0.04794791,147.16,147.14,11.69089693]
[1749188027527,0.04794791,147.16,147.15,6.7925]
[1749188027717,0.04794791,147.16,147.14,4.89799693]
[1749188028622,0.04794791,147.16,147.14,11.69059693]
[1749188030521,0.04794791,147.16,147.15,6.7925]
[1749188031226,0.04794791,147.16,147.15,9.89354504]
[1749188031425,0.04794791,147.16,147.15,3.10104504]
[1749188039238,0.04794791,147.16,147.14,6.84193308]
[1749188039433,0.04794791,147.16,147.15,3.10104504]
[1749188042844,0.04794791,147.16,147.15,9.89354504]
[1749188047146,2.2304,147.21,147.15,3.10104504]
[1749188047345,2.2304,147.21,147.19,3.10104504]
[1749188047548,6.7902,147.2,147.19,3.10104504]
[1749188048348,0.05034116,147.21,147.19,3.10104504]
[1749188048643,0.05034116,147.21,147.2,3.10104504]
[1749188052248,6.84004116,147.21,147.2,3.10104504]
[1749188056949,0.05034116,147.21,147.2,3.10104504]
[1749188066760,0.05034116,147.21,147.2,9.89124504]
[1749188077370,0.05034116,147.21,147.2,3.10104504]
[1749188077770,0.05034116,147.21,147.2,9.89124504]
[1749188077967,0.05034116,147.21,147.18,0.0507215]
[1749188078174,3.10104504,147.19,147.18,0.0507215]
[1749188078366,8.72255081,147.19,147.15,3.10104504]
[1749188078575,3.10104504,147.18,147.14,3.10104504]
[1749188079072,8.7223822,147.18,147.14,3.10104504]
[1749188079272,6.83705225,147.17,147.15,0.05054655]
[1749188079471,0.04535225,147.17,147.15,0.05054655]
[1749188079672,8.72180282,147.16,147.15,0.05054655]
[1749188079872,13.19145165,147.16,147.11,3.10104504]
[1749188080067,3.10104504,147.15,147.11,3.10104504]
[1749188080268,6.7933,147.14,147.11,3.10104504]
[1749188080876,6.7933,147.14,147.11,3.14855681]
[1749188080877,6.83687055,147.14,147.11,3.14855681]
[1749188083473,6.83657055,147.14,147.11,3.14855681]
[1749188084877,6.83657055,147.14,147.12,3.10104504]
[1749188087585,0.04357055,147.14,147.12,3.10104504]
[1749188094988,6.83657055,147.14,147.12,3.10104504]
[1749188095984,0.04357055,147.14,147.12,3.10104504]
[1749188097699,6.83657055,147.14,147.12,3.10104504]
[1749188098196,0.04357055,147.14,147.12,3.10104504]
[1749188100200,0.04357055,147.14,147.13,3.10104504]
[1749188101398,0.04357055,147.14,147.12,3.10104504]
[1749188102896,0.04357055,147.14,147.12,9.89484504]
[1749188103200,0.04357055,147.14,147.13,3.10104504]
[1749188105301,0.04357055,147.14,147.13,9.89444504]
[1749188111198,0.04357055,147.14,147.12,3.10104504]
[1749188111598,0.04357055,147.14,147.13,3.10104504]
[1749188113101,0.04357055,147.14,147.13,9.89444504]
[1749188115809,0.04357055,147.14,147.13,3.10104504]
[1749188117808,0.04357055,147.14,147.13,9.89444504]
[1749188121213,0.04357055,147.14,147.12,6.7937]
[1749188121409,0.04357055,147.14,147.13,3.10104504]
[1749188124216,0.04357055,147.14,147.13,9.89444504]
[1749188132424,0.04357055,147.14,147.13,3.10104504]
[1749188136528,0.04357055,147.14,147.13,9.89444504]
[1749188136823,0.04357055,147.14,147.11,0.04751177]
[1749188137029,0.04357055,147.14,147.13,3.10104504]
[1749188139528,0.04357055,147.14,147.13,9.89444504]
[1749188139727,0.04357055,147.14,147.13,3.10104504]
[1749188143031,0.04357055,147.14,147.13,9.89444504]
[1749188154735,0.04357055,147.14,147.11,34.60751177]
[1749188154930,0.04357055,147.14,147.13,3.10104504]
[1749188155832,0.04357055,147.14,147.13,9.89444504]
[1749188162533,9.89194504,147.19,147.16,6.792]
[1749188162739,10.05962201,147.18,147.16,9.89304504]
[1749188162936,44.37054504,147.2,147.16,9.89304504]
[1749188163144,10.05806792,147.19,147.16,9.89304504]
[1749188163339,10.05804482,147.18,147.17,3.10104504]
[1749188163550,10.05804802,147.18,147.17,3.10104504]
[1749188164643,4.44155233,147.18,147.17,3.10104504]
[1749188164947,0.05224679,147.19,147.17,3.10104504]
[1749188165642,0.05224679,147.19,147.18,3.10104504]
[1749188166234,0.05224679,147.19,147.18,9.89214504]
[1749188168945,0.05224679,147.19,147.17,6.7915]
[1749188169145,0.05224679,147.19,147.18,3.10104504]
[1749188169340,0.05224679,147.19,147.17,6.7915]
[1749188169544,0.05224679,147.19,147.18,3.10104504]
[1749188172850,0.05224679,147.19,147.18,9.89214504]
[1749188178745,0.05224679,147.19,147.18,6.7911]
[1749188178943,0.05224679,147.19,147.18,9.89214504]
[1749188180343,34.56,147.23,147.21,6.7895]
[1749188180647,5.20154504,147.25,147.22,3.10104504]
[1749188180648,2.1005,147.25,147.22,3.10104504]
[1749188180846,2.1005,147.25,147.23,3.10104504]
[1749188181244,0.0433967,147.25,147.24,3.10104504]
[1749188181448,0.0433967,147.25,147.23,0.05035457]
[1749188181648,0.0433967,147.25,147.23,3.15139961]
[1749188182647,0.0433967,147.25,147.24,3.10104504]
[1749188182850,6.8312967,147.25,147.24,3.10104504]
[1749188183251,0.0433967,147.25,147.24,3.10104504]
[1749188186151,0.0433967,147.25,147.23,0.05035457]
[1749188186553,6.7883,147.24,147.23,0.05035457]
[1749188187351,6.7883,147.24,147.23,3.15139961]
[1749188188154,6.8313967,147.25,147.23,3.15139961]
[1749188188653,0.0433967,147.25,147.23,3.15139961]
[1749188188854,0.0433967,147.25,147.24,3.10104504]
[1749188190152,0.0433967,147.25,147.24,9.88934504]
[1749188190655,34.48,147.29,147.23,0.05035457]
[1749188190855,37.58104504,147.29,147.26,3.10104504]
[1749188191257,6.7867,147.28,147.26,3.10104504]
[1749188191457,6.83117342,147.28,147.26,3.14421325]
[1749188191756,0.04447342,147.28,147.26,3.14421325]
[1749188192156,6.83117342,147.28,147.26,3.14421325]
[1749188192364,0.04447342,147.28,147.26,0.04316821]
[1749188193660,6.787,147.27,147.26,0.04316821]
[1749188194058,9.88804504,147.27,147.26,0.04316821]
[1749188194864,12.03664504,147.27,147.26,0.04316821]
[1749188195160,6.7893,147.22,147.19,34.48]
[1749188195362,6.7893,147.22,147.18,11.63385467]
[1749188196063,0.04949309,147.21,147.19,0.05227224]
[1749188202969,0.04949309,147.21,147.19,6.84287224]
[1749188212076,0.04949309,147.21,147.2,6.7902]
[1749188212778,0.04949309,147.21,147.19,6.84267224]
[1749188215276,0.04949309,147.21,147.2,3.09915917]
[1749188224293,0.04949309,147.21,147.19,6.84267224]
[1749188224588,0.04949309,147.21,147.19,9.94183141]
[1749188226583,0.04949309,147.21,147.19,0.05227224]
[1749188226888,3.09915917,147.2,147.19,0.05227224]
[1749188227285,9.88935917,147.2,147.19,0.05227224]
[1749188227983,34.46949309,147.21,147.19,3.15143141]
[1749188228187,37.56865226,147.21,147.19,0.05227224]
[1749188229888,44.35845226,147.21,147.19,0.05227224]
[1749188233893,6.7902,147.2,147.19,0.05227224]
[1749188236190,9.88935917,147.2,147.19,0.05227224]
[1749188236393,8.73540038,147.2,147.13,3.09915917]
[1749188236589,3.09915917,147.16,147.13,3.09915917]
[1749188236793,6.7921,147.16,147.13,9.89255917]
[1749188237092,6.7921,147.16,147.13,3.09915917]
[1749188237296,6.83753362,147.16,147.13,3.14470548]
[1749188237690,9.93669279,147.16,147.13,3.14470548]
[1749188238589,6.7925,147.15,147.13,3.14470548]
[1749188238793,0.04543362,147.16,147.13,3.14470548]
[1749188239393,3.14459279,147.16,147.13,0.04554631]
[1749188240598,6.7928,147.15,147.13,0.04554631]
[1749188242700,9.93679279,147.16,147.13,3.14470548]
[1749188242899,0.04543362,147.16,147.15,3.09915917]
[1749188243899,0.04543362,147.16,147.15,9.89165917]
[1749188244105,41.1503,147.2,147.17,3.09915917]
[1749188245006,41.19370988,147.2,147.17,3.14348407]
[1749188245806,41.19370988,147.2,147.17,9.93498407]
[1749188246106,34.40340988,147.2,147.17,9.93498407]
[1749188246409,34.40340988,147.2,147.19,3.09915917]
[1749188246810,0.04340988,147.2,147.19,9.88975917]
[1749188247510,0.04340988,147.2,147.19,3.09915917]
[1749188248612,0.04340988,147.2,147.19,9.88975917]
[1749188249214,0.04340988,147.2,147.19,6.7906]
[1749188249408,12.89361354,147.26,147.18,4.8424125]
[1749188249409,34.36,147.26,147.18,39.2024125]
[1749188249610,34.36,147.29,147.22,4.8424125]
[1749188249911,5.63630094,147.28,147.23,6.7887]
[1749188250109,5.63630094,147.27,147.23,6.7887]
[1749188250309,0.04461234,147.26,147.24,0.04888492]
[1749188251109,0.04461234,147.26,147.24,6.83708492]
[1749188251303,0.04461234,147.26,147.24,11.67949742]
[1749188252510,0.04461234,147.26,147.25,6.7879]
[1749188259218,34.36,147.29,147.27,6.7866]
[1749188259523,34.36,147.32,147.28,4.8424125]
[1749188259822,34.36,147.32,147.3,4.8424125]
[1749188260021,2.2103,147.37,147.3,4.8424125]
[1749188260219,41.18831716,147.35,147.32,4.89294365]
[1749188260425,41.18831716,147.35,147.32,0.05053115]
[1749188260720,34.40491716,147.35,147.32,0.05053115]
[1749188260923,41.18861716,147.35,147.32,0.05053115]
[1749188261316,41.18861716,147.35,147.33,4.8424125]
[1749188261317,34.40491716,147.35,147.33,4.8424125]
[1749188262722,34.40491716,147.35,147.33,11.6264125]
[1749188264124,34.40491716,147.35,147.33,4.8424125]
[1749188264721,0.04491716,147.35,147.33,4.8424125]
[1749188265727,0.04491716,147.35,147.34,6.7837]
[1749188266226,6.7813,147.4,147.35,6.783]
[1749188266426,34.3,147.41,147.37,4.8424125]
[1749188266828,6.781,147.4,147.37,4.8424125]
[1749188267224,6.82995959,147.4,147.37,4.89308095]
[1749188267428,6.7815,147.39,147.37,4.89308095]
[1749188267623,0.04895959,147.4,147.37,0.05066845]
[1749188268630,6.7819,147.38,147.37,0.05066845]
[1749188271532,6.7816,147.39,147.37,0.05066845]
[1749188272036,0.04895959,147.4,147.37,0.05066845]
[1749188272339,6.7815,147.39,147.37,0.05066845]
[1749188273229,0.04895959,147.4,147.37,0.05066845]
[1749188273634,6.7819,147.38,147.37,0.05066845]
[1749188274837,6.78,147.38,147.31,2.65378]
[1749188275030,5.6613232,147.4,147.31,2.65378]
[1749188275031,4.8424125,147.35,147.31,2.65378]
[1749188275536,6.7845,147.33,147.31,2.65378]
[1749188275736,41.10862636,147.33,147.31,2.70034033]
[1749188276338,6.7846,147.32,147.31,2.70034033]
[1749188284838,39.16653886,147.33,147.23,6.9647125]
[1749188285041,4.8424125,147.3,147.23,6.9647125]
[1749188285249,34.28,147.29,147.23,6.9647125]
[1749188285448,34.28,147.29,147.24,6.788]
[1749188285847,0.04742355,147.28,147.25,0.04742825]
[1749188287050,6.83412355,147.28,147.25,0.04742825]
[1749188288251,0.04742355,147.28,147.25,0.04742825]
[1749188288847,6.83422355,147.28,147.25,0.04742825]
[1749188293251,6.7871,147.27,147.25,0.04742825]
[1749188293650,0.04742355,147.28,147.25,0.04742825]
[1749188293851,6.83412355,147.28,147.25,0.04742825]
[1749188294755,6.787,147.27,147.25,0.04742825]
[1749188294952,0.04742355,147.28,147.25,0.04742825]
[1749188295650,6.83432355,147.28,147.25,0.04742825]
[1749188296246,0.04742355,147.28,147.25,0.04742825]
[1749188297358,6.787,147.27,147.25,0.04742825]
[1749188297962,5.68941899,147.28,147.25,0.04742825]
[1749188298163,12.47601899,147.28,147.25,0.04742825]
[1749188298364,0.04742355,147.28,147.25,0.04742825]
[1749188299665,6.83422355,147.28,147.25,0.04742825]
[1749188302163,0.04742355,147.28,147.25,4.88984075]
[1749188302761,0.04742355,147.28,147.27,6.7869]
[1749188303163,0.04742355,147.28,147.26,6.7872]
[1749188303966,0.04742355,147.28,147.26,11.6296125]
[1749188307069,0.04742355,147.28,147.27,6.7869]
[1749188307270,0.04742355,147.28,147.26,4.8424125]
[1749188307569,0.04742355,147.28,147.26,11.6297125]
[1749188309872,0.04742355,147.28,147.27,6.7869]
[1749188312271,34.26,147.32,147.26,4.8424125]
[1749188312869,6.7859,147.3,147.27,6.7867]
[1749188313174,6.83138509,147.3,147.27,6.83127747]
[1749188313874,0.04548509,147.3,147.28,4.8424125]
[1749188314676,0.04548509,147.3,147.29,6.786]
[1749188317073,0.04548509,147.3,147.28,11.6287125]
[1749188317374,0.04548509,147.3,147.28,4.8424125]
[1749188319474,0.04548509,147.3,147.27,6.83127747]
[1749188321178,6.83108509,147.3,147.27,0.04457747]
[1749188321379,0.04548509,147.3,147.27,0.04457747]
[1749188322075,5.69215501,147.29,147.27,6.83147747]
[1749188322373,0.04548509,147.3,147.27,6.83147747]
[1749188324181,6.83118509,147.3,147.27,0.04457747]
[1749188329779,41.07118509,147.3,147.27,0.04457747]
[1749188329979,34.28548509,147.3,147.27,0.04457747]
[1749188330180,10.1905989,147.29,147.27,0.04457747]
[1749188330377,10.1905989,147.28,147.22,6.9567125]
[1749188330575,10.18986683,147.27,147.22,6.9567125]
[1749188330879,6.7873,147.27,147.23,6.7886]
[1749188331075,10.18837034,147.26,147.23,6.7886]
[1749188331282,34.24,147.26,147.22,4.8424125]
[1749188331581,0.04798269,147.25,147.23,0.04559159]
[1749188332778,0.04798269,147.25,147.23,6.83409159]
[1749188333580,0.04798269,147.25,147.24,6.7883]
[1749188335281,0.04798269,147.25,147.23,6.83419159]
[1749188336181,0.04798269,147.25,147.23,0.04559159]
[1749188337676,0.04798269,147.25,147.24,6.7883]
[1749188339577,0.04798269,147.25,147.23,6.83419159]
[1749188341386,0.04798269,147.25,147.23,0.04559159]
[1749188342788,5.6823829,147.24,147.23,0.04559159]
[1749188343185,12.4706829,147.24,147.23,0.04559159]
[1749188343385,6.7883,147.24,147.23,0.04559159]
[1749188344390,4.89039519,147.25,147.18,7.1357125]
[1749188344391,6.7893,147.22,147.18,7.1357125]
[1749188344690,34.24,147.22,147.16,4.8424125]
[1749188344989,34.24,147.22,147.17,6.7912]
[1749188345377,34.24,147.22,147.18,0.04766115]
[1749188345689,4.51739685,147.21,147.18,0.04766115]
[1749188346687,6.7903,147.2,147.18,0.04766115]
[1749188349387,6.7906,147.19,147.18,0.04766115]
[1749188350086,10.54861776,147.21,147.13,6.7934]
[1749188350281,38.6071,147.2,147.13,4.8424125]
[1749188350884,0.04764074,147.18,147.15,0.04372909]
[1749188351089,6.7916,147.17,147.15,0.04372909]
[1749188351390,0.04764074,147.18,147.15,0.04372909]
[1749188351692,6.83894074,147.18,147.15,0.04372909]
[1749188353684,0.04764074,147.18,147.15,0.04372909]
[1749188354193,4.8424125,147.17,147.1,11.6370125]
[1749188354393,34.26,147.16,147.1,11.6370125]
[1749188354587,34.26,147.16,147.1,4.8424125]
[1749188355089,0.04683989,147.14,147.12,4.89446862]
[1749188355594,0.04683989,147.14,147.13,6.7934]
[1749188356093,0.04683989,147.14,147.12,11.68816862]
[1749188356893,0.04683989,147.14,147.13,6.7934]
[1749188358094,0.04683989,147.14,147.12,11.68816862]
[1749188361894,0.04683989,147.14,147.13,6.7934]
[1749188364191,0.04683989,147.14,147.12,11.68816862]
[1749188365291,0.04683989,147.14,147.13,6.7934]
[1749188365698,0.04683989,147.14,147.12,4.89446862]
[1749188366098,0.04683989,147.14,147.12,11.68816862]
[1749188366395,0.04683989,147.14,147.12,4.89446862]
[1749188367497,0.04683989,147.14,147.12,11.68816862]
[1749188368198,0.04683989,147.14,147.12,6.84575612]
[1749188369990,0.04683989,147.14,147.12,0.05205612]
[1749188370694,6.84003989,147.14,147.12,0.05205612]
[1749188378303,0.04683989,147.14,147.12,0.05205612]
[1749188380808,0.04683989,147.14,147.12,6.84575612]
[1749188381008,0.04683989,147.14,147.12,4.89446862]
[1749188381507,0.04683989,147.14,147.13,6.7934]
[1749188384905,0.04683989,147.14,147.12,11.68806862]
[1749188385608,0.04683989,147.14,147.13,6.7934]
[1749188385910,0.04683989,147.14,147.12,4.89446862]
[1749188386110,0.04683989,147.14,147.12,0.05205612]
[1749188387612,0.04683989,147.14,147.03,34.22]
[1749188387613,4.88925239,147.14,147.03,34.22]